Department Family,Entity,Pay date,Expense Type(T),Expense Area(T),Supplier(T),Transaction Number,Amount,Description
NS&I,NS&I,17/01/2024,Unitary fee - Outsource partner,Commercial and Legal,Atos IT Services UK Ltd,4025274," 5,671,960.45 ",Unitary service charge - January 2024
NS&I,NS&I,29/01/2024,Professional services - Other,Rainbow,Sopra Steria Limited,4025379," 2,576,314.81 ",Strategic Transformation Programme delivery � PPC 
NS&I,NS&I,24/01/2024,Unitary fee - Outsource partner,B2B Government Payment Services,Atos IT Services UK Ltd,4025306," 1,458,927.86 ",Tax-free childcare service charges January 2024
NS&I,NS&I,03/01/2024,Maintenance and running costs - Outsource partner,Rainbow,Atos IT Services UK Ltd,4025051," 691,669.00 ",Corporate system improvements
NS&I,NS&I,29/01/2024,Maintenance and running costs - Outsource partner,Information & Technology,Atos IT Services UK Ltd,4025343," 489,600.00 ",FA portal website annual renewal charge
NS&I,NS&I,17/01/2024,Professional services - Other,Rainbow,IBM United Kingdom Ltd,4025221," 465,475.03 ",IT service charges November 2023
NS&I,NS&I,24/01/2024,Professional services - Other,Rainbow,IBM United Kingdom Ltd,4025310," 465,475.03 ",IT service charges December 2023
NS&I,NS&I,29/01/2024,Unitary fee - Outsource partner,B2B Government Payment Services,Atos IT Services UK Ltd,4025359," 420,516.14 ",Help to save service charges - January 2024
NS&I,NS&I,24/01/2024,Unitary fee - Outsource partner,B2B Government Payment Services,Atos IT Services UK Ltd,4025308," 380,522.80 ",Help to buy service charges January 2024
NS&I,NS&I,24/01/2024,Unitary fee - Outsource partner,B2B Government Payment Services,Atos IT Services UK Ltd,4025305," 301,889.86 ",30 Hours service charges - January 2024
NS&I,NS&I,29/01/2024,Unitary fee - Outsource partner,B2B Government Payment Services,Atos IT Services UK Ltd,4025358," 288,921.61 ",Help to save service charges - January 2024
NS&I,NS&I,03/01/2024,Maintenance and running costs - Outsource partner,Rainbow,Atos IT Services UK Ltd,4025086," 256,594.00 ",Corporate system improvements
NS&I,NS&I,10/01/2024,Professional services - Other,Information & Technology,Capgemini Financial Services UK Ltd (IT Partner),4025229," 254,632.92 ",IT delivery partner support
NS&I,NS&I,10/01/2024,Project costs - Outsource partner,Programme Delivery,Atos IT Services UK Ltd,4025196," 250,000.00 ",Improving customer communication channels
NS&I,NS&I,24/01/2024,Professional services - Other,Finance,Atos IT Services UK Ltd,4025255," 223,888.00 ",Financial Ledger Annual Licence Cost 2024
NS&I,NS&I,10/01/2024,Unitary fee - Outsource partner,B2B Government Payment Services,Atos IT Services UK Ltd,4025216," 211,721.76 ",Help to save service charges - November 2023
NS&I,NS&I,17/01/2024,Professional services - Other,Rainbow,Actica Consulting Ltd,4025271," 210,219.00 ",Strategic Business Design support
NS&I,NS&I,17/01/2024,Capital suspense account,Rainbow,IBM United Kingdom Ltd,4025253," 198,278.80 ",Infrastructure update work
NS&I,NS&I,17/01/2024,Capital suspense account,Rainbow,IBM United Kingdom Ltd,4025299," 198,278.80 ",Infrastructure update work
NS&I,NS&I,29/01/2024,Advertising and production,Marketing Communications,Manning Gottlieb OMD,4025387," 193,903.54 ",Cost of Marketing Campaigns
NS&I,NS&I,03/01/2024,Project costs - Outsource partner,Programme Delivery,Atos IT Services UK Ltd,4025148," 189,970.00 ",Product enhancement
NS&I,NS&I,24/01/2024,Professional services - Legal,Rainbow,Bevan Brittan LLP,4025300," 180,000.00 ",Legal Services December 2023
NS&I,NS&I,10/01/2024,Professional services - Other,Rainbow,Capgemini UK plc (SIAM Partner),4025231," 154,204.08 ",Service Integration and Management  Partner support 
NS&I,NS&I,17/01/2024,Unitary fee - Outsource partner,B2B Government Payment Services,Atos IT Services UK Ltd,4025237," 144,030.62 ",Court Funds Office Service Charges December 2023
NS&I,NS&I,04/01/2024,Product account bank charges,Finance,RBSG NS&I Charges A/c,4025206," 140,461.03 ",Quarterly Bank Charges September 2023 - December 2023
NS&I,NS&I,10/01/2024,Unitary fee - Outsource partner,B2B Government Payment Services,Atos IT Services UK Ltd,4025199," 117,629.31 ",Tax-free childcare service charges - January 2024
NS&I,NS&I,10/01/2024,Building services charge,Workplace & Culture,Government Property Agency,4025244," 109,587.52 ",Furniture and fittings
NS&I,NS&I,03/01/2024,Maintenance and running costs - Outsource partner,Information & Technology,Atos IT Services UK Ltd,4025023," 105,000.00 ",Customer journey improvements
NS&I,NS&I,17/01/2024,Maintenance and running costs - Outsource partner,Change Delivery,Atos IT Services UK Ltd,4025279," 100,000.00 ",Programme management cost December 2023
NS&I,NS&I,10/01/2024,Maintenance and running costs - Outsource partner,Rainbow,Atos IT Services UK Ltd,4025178," 99,911.00 ",Test environment maintenance costs
NS&I,NS&I,03/01/2024,Maintenance and running costs - Outsource partner,Business Insight,Atos IT Services UK Ltd,4025089," 99,675.00 ",Data warehouse development work
NS&I,NS&I,29/01/2024,Maintenance and running costs - Outsource partner,Business Insight,Atos IT Services UK Ltd,4025377," 99,675.00 ",Data warehouse development work
NS&I,NS&I,10/01/2024,Unitary fee - Outsource partner,B2B Government Payment Services,Atos IT Services UK Ltd,4025182," 98,793.97 ",Governance (November 2023)
NS&I,NS&I,10/01/2024,Project costs - Outsource partner,Programme Delivery,Atos IT Services UK Ltd,4025142," 98,731.00 ",Corporate system improvements
NS&I,NS&I,10/01/2024,Unitary fee - Outsource partner,B2B Government Payment Services,Atos IT Services UK Ltd,4025218," 96,184.62 ",Tax-free childcare service charges - November 2023
NS&I,NS&I,24/01/2024,Unitary fee - Outsource partner,B2B Government Payment Services,Atos IT Services UK Ltd,4025332," 95,212.30 ",B2B Central Programme Charges
NS&I,NS&I,10/01/2024,Unitary fee - Outsource partner,B2B Government Payment Services,Atos IT Services UK Ltd,4025126," 91,276.93 ",Governance (Oct 2023)
NS&I,NS&I,10/01/2024,Maintenance and running costs - Outsource partner,Information & Technology,Atos IT Services UK Ltd,4025193," 75,614.00 ",Delivering IT orchestration improvements November 2023
NS&I,NS&I,29/01/2024,Maintenance and running costs - Outsource partner,Information & Technology,Atos IT Services UK Ltd,4025347," 66,799.00 ",Delivering IT orchestration improvements December 2023
NS&I,NS&I,17/01/2024,Professional services - Other,Rainbow,IBM United Kingdom Ltd,4025278," 63,234.12 ",Service Operations Implementation Charges
NS&I,NS&I,31/01/2024,Professional services - Projects,Rainbow,Sopra Steria Limited,4025402," 60,935.48 ",B2B Transition Replanning Charges
NS&I,NS&I,24/01/2024,Maintenance and running costs - Outsource partner,Rainbow,Atos IT Services UK Ltd,4025340," 57,460.00 ",Test environment maintenance costs
NS&I,NS&I,29/01/2024,Maintenance and running costs - Outsource partner,Delivery & Monitoring,Atos IT Services UK Ltd,4025369," 57,396.00 ",Cost of Marketing Campaigns
NS&I,NS&I,10/01/2024,Unitary fee - Outsource partner,B2B Government Payment Services,Atos IT Services UK Ltd,4025208," 52,252.57 ",Tax-free childcare service charges - November 2023
NS&I,NS&I,17/01/2024,Market research,Market Intelligence & Research,The Institute of Customer Service,4025290," 50,400.00 ",Institute of Customer Service subscription
NS&I,NS&I,29/01/2024,Advertising agency costs,Marketing Communications,Unlimited Group United Ltd,4025348," 47,212.61 ",Cost of Marketing Campaigns
NS&I,NS&I,29/01/2024,Advertising agency costs,Marketing Communications,Unlimited Group United Ltd,4025349," 47,212.61 ",Cost of Marketing Campaigns
NS&I,NS&I,10/01/2024,Unitary fee - Outsource partner,B2B Government Payment Services,Atos IT Services UK Ltd,4025122," 46,736.69 ",B2B Central Programme Charges
NS&I,NS&I,10/01/2024,Unitary fee - Outsource partner,B2B Government Payment Services,Atos IT Services UK Ltd,4025207," 45,944.52 ",Tax-free childcare service charges - November 2023
NS&I,NS&I,24/01/2024,Maintenance and running costs - Outsource partner,Rainbow,Atos IT Services UK Ltd,4025337," 43,520.00 ",Test environment maintenance costs
NS&I,NS&I,10/01/2024,Unitary fee - Outsource partner,B2B Government Payment Services,Atos IT Services UK Ltd,4025171," 40,705.50 ",B2B Central Programme Charges
NS&I,NS&I,29/01/2024,Project costs - Outsource partner,Programme Delivery,Atos IT Services UK Ltd,4025365," 40,221.00 ",Product enhancement
NS&I,NS&I,04/01/2024,Product account bank charges,Finance,RBSG NS&I Charges A/c,4025042," 37,500.00 ",NatWest support for implementation of Confirmation of Payee
NS&I,NS&I,17/01/2024,Professional services - Other,Rainbow,IBM United Kingdom Ltd,4025295," 34,619.34 ",Service Operations Implementation Charges
NS&I,NS&I,24/01/2024,Maintenance and running costs - Outsource partner,Rainbow,Atos IT Services UK Ltd,4025338," 34,000.00 ",Test environment maintenance costs
NS&I,NS&I,29/01/2024,Direct marketing,Marketing Communications,Unlimited Group United Ltd,4025355," 31,974.20 ",Cost of Marketing Campaigns
NS&I,NS&I,17/01/2024,Professional services - Legal,Compliance & Delivery,Government Legal Department,4025296," 30,900.00 ",Professional fees - Advisory 
NS&I,NS&I,24/01/2024,Maintenance and running costs - Outsource partner,Rainbow,Atos IT Services UK Ltd,4025339," 30,600.00 ",Test environment maintenance costs
NS&I,NS&I,10/01/2024,Maintenance and running costs - Outsource partner,Security & Business Continuity,Atos IT Services UK Ltd,4025141," 30,596.00 ",Business� continuity services for London Office 
NS&I,NS&I,10/01/2024,Professional services - Other,Rainbow,Capgemini UK plc (SIAM Partner),4025212," 30,000.00 ",Service transition planning and mobilisation
NS&I,NS&I,10/01/2024,Maintenance and running costs - Outsource partner,Information & Technology,Atos IT Services UK Ltd,4025173," 29,312.00 ",FA portal website service costs
NS&I,NS&I,10/01/2024,Demand-linked costs - Outsource partner,Delivery & Monitoring,Atos IT Services UK Ltd,4025243," 29,013.00 ",Demand link service charge - November 2023
NS&I,NS&I,29/01/2024,Demand-linked costs - Outsource partner,Delivery & Monitoring,Atos IT Services UK Ltd,4025362," 29,013.00 ",Demand link service charge - December 2023
NS&I,NS&I,29/01/2024,Advertising agency costs,Marketing Communications,Unlimited Group United Ltd,4025385," 28,461.76 ",Cost of Marketing Campaigns
NS&I,NS&I,03/01/2024,Project costs - Outsource partner,Programme Delivery,Atos IT Services UK Ltd,4025080," 27,341.00 ",Updating customer experience
NS&I,NS&I,29/01/2024,Project costs - Outsource partner,Programme Delivery,Atos IT Services UK Ltd,4025344," 27,115.00 ",Corporate system improvements
NS&I,NS&I,03/01/2024,Project costs - Outsource partner,Programme Delivery,Atos IT Services UK Ltd,4025053," 27,009.00 ",Updating customer experience
NS&I,NS&I,10/01/2024,Unitary fee - Outsource partner,B2B Government Payment Services,Atos IT Services UK Ltd,4025215," 26,878.28 ",Help to save service charges - November 2023
NS&I,NS&I,03/01/2024,Project costs - Outsource partner,Programme Delivery,Atos IT Services UK Ltd,4025050," 26,549.00 ",Corporate system improvements
NS&I,NS&I,29/01/2024,Project costs - Outsource partner,Programme Delivery,Atos IT Services UK Ltd,4025351," 25,680.00 ",Updating customer experience
NS&I,NS&I,29/01/2024,Professional services - Projects,Programme Delivery,Agilisys Limited,4025366," 25,500.00 ",Corporate system improvements
